bitfinex/quotes_SOLUSD_20260203
["timestamp","ask_amount","ask_price","bid_price","bid_amount"]
[1770147017060,25.11320653,99.55,99.454,3.66875932]
[1770147017061,3.35632158,99.57,99.492,3.12406652]
[1770147017256,3.35632158,99.57,99.55,15.37198172]
[1770147017475,6.25565654,99.595,99.513,3.12406652]
[1770147017476,3.35632158,99.585,99.56,15.37198172]
[1770147017964,3.35632158,99.585,99.55,15.37198172]
[1770147018288,3.35632158,99.585,99.54,15.37198172]
[1770147018676,3.35632158,99.579,99.54,15.37198172]
[1770147020363,15.37198172,99.58,99.506,3.14370186]
[1770147020364,3.35632158,99.569,99.53,15.37198172]
[1770147020559,3.35632158,99.569,99.54,15.37198172]
[1770147020979,3.35632158,99.569,99.506,3.14370186]
[1770147021172,15.37198172,99.56,99.496,10.05058762]
[1770147021374,6.25565654,99.595,99.55,15.37198172]
[1770147021375,3.59639448,99.574,99.55,15.37198172]
[1770147022069,3.59639448,99.574,99.53,15.37198172]
[1770147022257,3.59639448,99.569,99.54,15.37198172]
[1770147022778,3.59639448,99.569,99.53,15.37198172]
[1770147023458,3.59639448,99.569,99.52,15.37198172]
[1770147023776,3.59639448,99.559,99.51,15.37198172]
[1770147023977,15.37198172,99.55,99.51,15.37198172]
[1770147024177,25.10413773,99.586,99.49,3.20761489]
[1770147024178,3.59639448,99.549,99.52,15.37198172]
[1770147024959,3.59639448,99.549,99.51,15.37198172]
[1770147025360,3.59639448,99.549,99.49,3.20761489]
[1770147025361,3.59639448,99.549,99.499,10.05035208]
[1770147025579,3.59639448,99.549,99.52,15.37198172]
[1770147025781,3.59639448,99.569,99.52,15.37198172]
[1770147026169,3.59639448,99.559,99.51,15.37198172]
[1770147026681,3.59639448,99.559,99.52,15.37198172]
[1770147026878,3.59639448,99.575,99.53,15.37198172]
[1770147027186,3.59639448,99.559,99.496,4.27527085]
[1770147027479,3.59639448,99.559,99.497,3.24547294]
[1770147027781,3.59639448,99.559,99.497,13.29596647]
[1770147028082,3.59639448,99.559,99.498,3.25780352]
[1770147028464,3.59639448,99.559,99.468,3.26999247]
[1770147028465,3.59639448,99.539,99.468,3.26999247]
[1770147028662,3.59639448,99.562,99.5,15.37198172]
[1770147028964,27.92,99.583,99.511,3.26999247]
[1770147028965,3.59639448,99.559,99.511,3.26999247]
[1770147029167,3.59639448,99.559,99.461,3.41215404]
[1770147029583,3.59639448,99.549,99.51,15.37198172]
[1770147030583,3.59639448,99.549,99.52,15.37198172]
[1770147030980,3.59639448,99.549,99.5,15.37198172]
[1770147031177,3.59639448,99.529,99.49,15.37198172]
[1770147031583,3.59639448,99.529,99.5,15.37198172]
[1770147031784,3.59639448,99.529,99.487,10.05156452]
[1770147031785,3.59639448,99.529,99.49,15.37198172]
[1770147031993,3.59639448,99.519,99.457,3.30572571]
[1770147032181,3.59639448,99.519,99.47,15.37198172]
[1770147032379,3.59639448,99.519,99.48,10.0995645]
[1770147032696,10.0995645,99.51,99.47,10.0995645]
[1770147032878,3.59639448,99.519,99.47,10.0995645]
[1770147033481,10.0995645,99.51,99.47,10.0995645]
[1770147033789,3.59639448,99.551,99.491,3.32886906]
[1770147033988,3.59639448,99.579,99.501,3.32886906]
[1770147034182,6.23904936,99.582,99.56,10.0995645]
[1770147034387,3.59639448,99.581,99.56,15.33347708]
[1770147035486,6.23904936,99.582,99.56,15.33347708]
[1770147036088,6.23904936,99.582,99.55,15.33347708]
[1770147036591,3.59639448,99.579,99.54,15.33347708]
[1770147036910,3.59639448,99.579,99.465,50.79728971]
[1770147036911,3.59639448,99.549,99.5,15.33347708]
[1770147037095,16.28104658,99.582,99.481,3.36259675]
[1770147037096,15.33347708,99.53,99.49,15.33347708]
[1770147037585,3.59639448,99.519,99.48,15.33347708]
[1770147037895,3.59639448,99.519,99.47,15.33347708]
[1770147038086,3.59639448,99.519,99.48,15.33347708]
[1770147038288,3.59639448,99.519,99.49,15.33347708]
[1770147038591,10.04514522,99.551,99.49,15.33347708]
[1770147038592,3.59639448,99.55,99.49,15.33347708]
[1770147038792,3.59639448,99.549,99.5,15.33347708]
[1770147038975,3.59639448,99.539,99.5,15.33347708]
[1770147039169,3.59639448,99.539,99.484,3.38444116]
[1770147039170,3.59639448,99.539,99.51,15.33347708]
[1770147039400,3.59639448,99.559,99.484,3.38444116]
[1770147039694,15.33347708,99.54,99.5,15.33347708]
[1770147039894,3.59639448,99.539,99.5,15.33347708]
[1770147040196,3.59639448,99.539,99.484,3.38444116]
[1770147040197,3.59639448,99.539,99.51,15.33347708]
[1770147040393,3.59639448,99.569,99.53,15.34300708]
[1770147040783,3.59639448,99.549,99.5,15.34300708]
[1770147041508,3.59639448,99.539,99.49,15.34300708]
[1770147041805,15.34300708,99.53,99.49,15.34300708]
[1770147042008,3.59639448,99.529,99.47,3.41627586]
[1770147042212,3.59639448,99.529,99.443,25.13984666]
[1770147042213,3.59639448,99.527,99.417,3.41627586]
[1770147042496,3.59639448,99.489,99.44,15.34300708]
[1770147042707,15.34300708,99.47,99.43,15.54300708]
[1770147042897,18.93940156,99.47,99.43,0.2]
[1770147043101,3.59639448,99.47,99.44,15.34300708]
[1770147043284,3.59639448,99.47,99.43,0.2]
[1770147043486,15.34300708,99.47,99.43,15.54300708]
[1770147043684,18.93940156,99.47,99.43,15.54300708]
[1770147043887,3.59639448,99.469,99.43,15.54300708]
[1770147044391,3.59639448,99.479,99.44,15.34300708]
[1770147044588,3.59639448,99.459,99.41,15.34300708]
[1770147044797,15.34300708,99.44,99.4,15.34300708]
[1770147044991,27.92,99.466,99.39,15.54300708]
[1770147044992,3.59639448,99.439,99.39,15.54300708]
[1770147045189,3.59639448,99.478,99.391,3.60158941]
[1770147045393,3.7936362,100.96,99.47,15.34300708]
[1770147045394,3.59639448,99.519,99.47,15.34300708]
[1770147045589,3.59639448,99.519,99.49,15.34300708]
[1770147046412,3.59639448,99.519,99.48,15.34300708]
[1770147046627,3.59639448,99.509,99.46,15.34300708]
[1770147046786,3.59639448,99.509,99.47,15.34300708]
[1770147047415,3.59639448,99.523,99.49,15.34300708]
[1770147048817,3.59639448,99.523,99.48,15.34300708]
[1770147049018,3.59639448,99.519,99.47,15.34300708]
[1770147049220,3.59639448,99.519,99.48,15.34300708]
[1770147049412,3.59639448,99.519,99.47,15.34300708]
[1770147049926,25.11271029,99.552,99.47,15.34300708]
[1770147049927,6.24146283,99.574,99.511,3.60158941]
[1770147050097,6.24146283,99.574,99.527,3.60158941]
[1770147050301,6.24146283,99.574,99.54,15.34300708]
[1770147051301,9.92443787,99.574,99.53,15.34300708]
[1770147051508,15.34300708,99.57,99.53,15.34300708]
[1770147051702,3.68297504,99.573,99.53,15.34300708]
[1770147051924,15.34300708,99.57,99.53,15.34300708]
[1770147052108,6.24146283,99.574,99.541,3.72187074]
[1770147052310,6.24146283,99.574,99.55,15.34300708]
[1770147052814,3.68297504,99.569,99.52,15.34300708]
[1770147053302,3.68297504,99.569,99.53,15.34300708]
[1770147053498,3.68297504,99.569,99.52,15.34300708]
[1770147053703,3.86030804,99.549,99.51,15.34300708]
[1770147053928,10.04288311,99.573,99.49,15.34300708]
[1770147053929,15.34300708,99.53,99.49,15.34300708]
[1770147054104,35.15009088,99.573,99.45,15.34300708]
[1770147054105,19.20331512,99.5,99.45,15.34300708]
[1770147054306,19.20331512,99.5,99.45,19.08496566]
[1770147054505,3.86030804,99.514,99.47,15.34300708]
[1770147055129,3.86030804,99.514,99.46,19.08496566]
[1770147055303,3.86030804,99.514,99.45,15.34300708]
[1770147055701,3.86030804,99.514,99.46,15.34300708]
[1770147056113,15.34300708,99.49,99.45,15.34300708]
[1770147056311,15.34300708,99.48,99.44,15.34300708]
[1770147056508,6.24466426,99.513,99.45,15.34300708]
[1770147056509,15.34300708,99.49,99.45,15.34300708]
[1770147056929,15.34300708,99.49,99.441,3.74195858]
[1770147057121,3.86030804,99.479,99.43,15.34300708]
[1770147057309,15.34300708,99.47,99.43,15.34300708]
[1770147057625,15.34300708,99.47,99.413,3.74195858]
[1770147057626,15.34300708,99.47,99.42,15.34300708]
[1770147057928,3.86030804,99.479,99.44,15.34300708]
[1770147058513,3.86030804,99.479,99.44,10.10808543]
[1770147059108,3.86030804,99.479,99.45,10.10808543]
[1770147059312,3.86030804,99.479,99.44,10.10808543]
[1770147059518,3.86030804,99.479,99.437,10.05661066]
[1770147059734,3.86030804,99.479,99.45,10.10808543]
[1770147060427,3.86030804,99.479,99.45,15.36822134]
[1770147060606,3.86030804,99.479,99.39,51.11174708]
[1770147060607,3.86030804,99.469,99.401,3.74195858]
[1770147060809,3.86030804,99.482,99.45,15.36822134]
[1770147061009,3.86030804,99.482,99.46,15.36822134]
[1770147061208,3.86030804,99.482,99.424,13.79982596]
[1770147061209,3.86030804,99.482,99.44,15.36822134]
[1770147061411,3.86030804,99.469,99.41,15.36822134]
[1770147061614,4.27527085,99.486,99.391,3.74195858]
[1770147061615,3.86030804,99.449,99.391,3.74195858]
[1770147061914,3.86030804,99.449,99.41,15.36822134]
[1770147062237,10.05083736,99.495,99.44,15.36822134]
[1770147062412,15.36822134,99.49,99.44,15.36822134]
[1770147062609,3.86030804,99.489,99.43,15.36822134]
[1770147062833,3.86030804,99.479,99.42,15.36822134]
[1770147063011,15.36822134,99.48,99.42,15.36822134]
[1770147063012,3.86030804,99.469,99.42,15.36822134]
[1770147063217,3.86030804,99.449,99.39,0.2]
[1770147063418,3.86030804,99.449,99.41,15.36822134]
[1770147064034,3.86030804,99.449,99.39,19.31017992]
[1770147064220,3.86030804,99.449,99.39,15.56822134]
[1770147064422,3.86030804,99.438,99.39,15.56822134]
[1770147064730,3.86030804,99.438,99.32,93.97208942]
[1770147064731,3.86030804,99.419,99.36,3.74195858]
[1770147064918,3.86030804,99.409,99.35,15.36822134]
[1770147065114,3.86030804,99.409,99.37,15.36822134]
[1770147065433,3.86030804,99.409,99.38,15.36822134]
[1770147065943,3.86030804,99.409,99.37,15.36822134]
[1770147066234,3.86030804,99.409,99.363,3.74195858]
[1770147066538,3.86030804,99.407,99.35,19.11017992]
[1770147066745,3.86030804,99.407,99.276,5.36086188]
[1770147066746,35.17623292,99.499,99.401,3.74195858]
[1770147066918,15.36822134,99.49,99.43,15.36822134]
[1770147067116,3.86030804,99.485,99.43,15.36822134]
[1770147067322,3.86030804,99.483,99.365,0.14216157]
[1770147067620,3.86030804,99.459,99.4,15.36822134]
[1770147067820,3.86030804,99.439,99.38,15.36822134]
[1770147068025,3.86030804,99.437,99.38,15.36822134]
[1770147068417,3.86030804,99.435,99.39,15.36822134]
[1770147068624,3.86030804,99.435,99.38,15.36822134]
[1770147068833,3.86030804,99.435,99.338,4.27527085]
[1770147068834,3.86030804,99.429,99.37,15.36822134]
[1770147069038,3.86030804,99.419,99.37,15.36822134]
[1770147070531,6.25623472,99.437,99.318,29.44682366]
[1770147070532,50.99518252,99.535,99.41,15.36822134]
[1770147070719,50.99518252,99.535,99.359,0.14216157]
[1770147070720,3.86030804,99.529,99.427,2.08615632]
[1770147070929,3.86030804,99.527,99.48,15.36822134]
[1770147071130,3.86030804,99.525,99.48,15.36822134]
[1770147071439,3.86030804,99.523,99.48,15.36822134]
[1770147071639,3.86030804,99.521,99.48,15.36822134]
[1770147071946,3.86030804,99.519,99.48,15.36822134]
[1770147072117,27.96,99.52,99.48,15.36822134]
[1770147072118,3.86030804,99.517,99.48,15.36822134]
[1770147072318,3.86030804,99.516,99.46,15.36822134]
[1770147072518,3.86030804,99.513,99.46,15.36822134]
[1770147072739,10.04883734,99.514,99.45,15.36822134]
[1770147072740,3.86030804,99.509,99.45,15.36822134]
[1770147073042,3.86030804,99.507,99.46,15.36822134]
[1770147074818,27.96,99.52,99.423,2.2269322]
[1770147074819,3.86030804,99.489,99.423,2.2269322]
[1770147075025,3.86030804,99.489,99.45,15.36822134]
[1770147075626,3.86030804,99.489,99.44,15.36822134]
[1770147075945,3.86030804,99.487,99.44,15.36822134]
[1770147076715,3.86030804,99.487,99.423,2.2269322]
[1770147076716,3.86030804,99.487,99.45,15.36822134]
[1770147076917,3.86030804,99.485,99.44,15.36822134]
[1770147077338,3.86030804,99.485,99.423,2.2269322]
[1770147077339,3.86030804,99.485,99.45,15.36822134]
[1770147077846,3.86030804,99.485,99.46,15.36822134]
[1770147078021,3.86030804,99.485,99.45,15.36822134]
[1770147078228,27.96,99.501,99.47,15.36822134]
[1770147078434,3.86030804,99.5,99.47,15.36822134]
[1770147078623,3.86030804,99.5,99.434,2.39167922]
[1770147078830,3.86030804,99.49,99.45,15.36822134]
[1770147079043,3.86030804,99.49,99.47,15.36822134]
[1770147079240,3.86030804,99.49,99.46,15.36822134]
[1770147079652,3.86030804,99.49,99.47,15.36822134]
[1770147079835,3.86030804,99.49,99.46,15.36822134]
[1770147081036,3.86030804,99.49,99.434,2.39167922]
[1770147081037,3.86030804,99.49,99.45,15.36822134]
[1770147081650,3.86030804,99.49,99.434,2.39167922]
[1770147081850,3.86030804,99.49,99.263,163.64507862]
[1770147081851,3.85359287,99.488,99.44,15.36822134]
[1770147082032,3.85359287,99.486,99.45,15.36822134]
[1770147082233,31.79359287,99.486,99.45,15.36822134]
[1770147082549,3.85359287,99.485,99.45,10.10523964]
[1770147083250,3.85359287,99.485,99.424,2.55489791]
[1770147083434,3.85359287,99.483,99.44,10.10523964]
[1770147083636,3.85359287,99.483,99.43,10.10523964]
[1770147084049,37.99186763,99.484,99.4,10.10523964]
[1770147084050,3.85359287,99.459,99.4,10.10523964]
[1770147084245,3.85359287,99.449,99.39,10.10523964]
[1770147084445,3.85359287,99.449,99.384,2.63372208]
[1770147084446,3.85359287,99.439,99.4,10.10523964]
[1770147084750,3.85359287,99.447,99.41,10.10523964]
[1770147085347,3.85359287,99.447,99.4,10.10523964]
[1770147085651,3.85359287,99.446,99.39,10.10523964]
[1770147085852,3.85359287,99.439,99.39,10.10523964]
[1770147086431,3.85359287,99.439,99.377,2.71074591]
[1770147086432,10.10523964,99.43,99.38,10.10523964]
[1770147086632,3.85359287,99.429,99.39,10.10523964]
[1770147087056,3.85359287,99.429,99.348,4.27527085]
[1770147087057,3.85359287,99.444,99.4,10.10523964]
[1770147087850,3.85359287,99.473,99.43,10.10523964]
[1770147088155,3.85359287,99.473,99.427,2.78601051]
[1770147088335,3.85359287,99.473,99.404,4.27527085]
[1770147088336,10.10523964,99.47,99.42,10.10523964]
[1770147088655,3.85359287,99.449,99.39,12.92823533]
[1770147088835,3.85359287,99.449,99.4,10.10523964]
[1770147089155,3.85359287,99.449,99.39,2.82299569]
[1770147089156,3.85359287,99.439,99.39,10.10523964]
[1770147089479,3.85359287,99.437,99.39,10.10523964]
[1770147089667,3.85359287,99.435,99.374,2.82299569]
[1770147089839,3.85359287,99.429,99.38,10.10523964]
[1770147090033,3.85359287,99.419,99.37,10.10523964]
[1770147090252,3.85359287,99.419,99.36,2.85955606]
[1770147090464,3.85359287,99.419,99.334,25.16754093]
[1770147090465,3.85359287,99.409,99.348,2.85955606]
[1770147090635,3.85359287,99.409,99.36,10.10523964]
[1770147091346,3.85359287,99.399,99.34,10.10523964]
[1770147091538,10.10523964,99.39,99.341,2.8956965]
[1770147091868,27.96,99.395,99.36,10.10523964]
[1770147092367,3.85359287,99.403,99.37,10.10523964]
[1770147092657,40.20700062,99.486,99.318,4.27527085]
[1770147092658,3.85359287,99.439,99.39,10.10523964]
[1770147092858,3.85359287,99.437,99.39,10.10523964]
[1770147094054,3.85359287,99.435,99.39,10.10523964]
[1770147094258,3.85359287,99.435,99.4,10.10523964]
[1770147095355,3.85359287,99.478,99.43,10.10523964]
[1770147095555,3.85359287,99.478,99.45,10.10523964]
[1770147095769,27.96,99.486,99.47,10.10523964]
[1770147096060,27.96,99.486,99.46,10.10523964]
[1770147096372,3.85359287,99.485,99.44,10.10523964]
[1770147096778,50.48956614,99.568,99.431,2.98852239]
[1770147096955,102.6036362,99.789,99.45,0.14216157]
[1770147096956,3.24718579,99.527,99.45,0.14216157]
[1770147097156,4.5,99.563,99.499,4.27527085]
[1770147097157,6.49848154,99.562,99.499,4.27527085]
[1770147097356,4.5,99.561,99.53,10.10523964]
[1770147097566,4.5,99.561,99.52,10.10523964]
[1770147097796,4.5,99.561,99.53,10.10523964]
[1770147098372,4.5,99.561,99.51,15.34791554]
[1770147098879,4.5,99.559,99.54,15.34791554]
[1770147099476,4.5,99.559,99.53,15.34791554]
[1770147100560,4.5,99.559,99.54,15.34791554]
[1770147100763,4.5,99.559,99.53,15.34791554]
[1770147101465,4.5,99.559,99.54,15.34791554]
[1770147101975,4.5,99.559,99.53,15.34791554]
[1770147102385,4.5,99.559,99.53,15.34262929]
[1770147102563,4.5,99.559,99.487,4.27527085]
[1770147102762,4.5,99.559,99.52,15.34262929]
[1770147103556,43.28262929,99.58,99.52,15.34262929]
[1770147103557,4.5,99.557,99.52,15.34262929]
[1770147103762,4.5,99.549,99.49,15.34262929]
[1770147103964,4.5,99.547,99.49,15.34262929]
[1770147104286,4.5,99.539,99.48,15.34262929]
[1770147104461,4.5,99.539,99.49,15.34262929]
[1770147105266,4.5,99.539,99.5,15.34262929]
[1770147105479,4.5,99.539,99.49,15.34262929]
[1770147105681,4.5,99.539,99.5,15.34262929]
[1770147106074,4.5,99.539,99.439,4.27527085]
[1770147106075,15.34262929,99.53,99.48,15.34262929]
[1770147106360,4.5,99.528,99.47,15.34262929]
[1770147106561,4.5,99.519,99.47,15.34262929]
[1770147107285,4.5,99.519,99.245,21.39191108]
[1770147107286,4.5,99.509,99.404,25.14964387]
[1770147107487,27.94,99.508,99.48,15.34262929]
[1770147107783,4.5,99.512,99.48,15.34262929]
[1770147107987,4.5,99.512,99.404,5.36086188]
[1770147108185,4.5,99.512,99.361,40.25711035]
[1770147108186,4.5,99.499,99.45,15.34262929]
[1770147108496,4.5,99.499,99.46,15.34262929]
[1770147109070,4.5,99.51,99.47,15.34262929]
[1770147109571,4.5,99.51,99.48,15.34262929]
[1770147109978,4.5,99.51,99.47,15.34262929]
[1770147110979,4.5,99.51,99.48,15.34262929]
[1770147111877,4.5,99.51,99.425,25.14443437]
[1770147111878,4.5,99.537,99.5,15.34262929]
[1770147112075,4.5,99.537,99.52,15.34262929]
[1770147112296,4.5,99.578,99.53,15.34262929]
[1770147112500,4.5,99.578,99.55,15.34262929]
[1770147112718,4.5,99.578,99.56,15.34262929]
[1770147113015,4.5,99.595,99.56,15.34262929]
[1770147113178,4.5,99.595,99.55,15.34262929]
[1770147113502,4.5,99.594,99.55,15.34262929]
[1770147114098,4.5,99.594,99.56,15.34262929]
[1770147114999,4.5,99.594,99.525,10.04772498]
[1770147115000,4.5,99.594,99.57,15.34262929]
[1770147115296,4.5,99.594,99.56,15.34262929]
[1770147115678,4.5,99.594,99.57,15.34262929]
[1770147115998,4.5,99.594,99.56,15.34262929]
[1770147116599,4.5,99.594,99.57,15.34262929]
[1770147116799,0.1,99.61,99.58,15.34262929]
[1770147117000,0.1,99.61,99.59,15.34262929]
[1770147118078,0.1,99.61,99.6,15.34262929]
[1770147118878,0.1,99.61,99.59,15.34262929]
[1770147119079,0.1,99.61,99.6,15.34262929]
[1770147119784,4.5,99.609,99.57,15.34262929]
[1770147120303,4.5,99.609,99.52,4.27527085]
[1770147120494,4.5,99.599,99.55,10.08458125]
[1770147120680,4.5,99.598,99.55,10.08458125]
[1770147120877,4.5,99.598,99.56,10.08458125]
[1770147121081,27.92,99.6,99.523,4.27527085]
[1770147121282,0.1,99.61,99.59,10.08458125]
[1770147121504,0.1,99.61,99.553,4.27527085]
[1770147121712,0.1,99.61,99.55,10.04519628]
[1770147121713,4.6,99.65,99.6,10.08458125]
[1770147121886,0.1,99.66,99.62,10.08458125]
[1770147122206,6.28317723,99.669,99.533,50.8785381]
[1770147122207,4.5,99.668,99.533,50.8785381]
[1770147122389,4.5,99.668,99.6,10.08458125]
[1770147122390,4.5,99.649,99.6,10.08458125]
[1770147122590,10.08458125,99.64,99.59,10.08458125]
[1770147122780,4.5,99.639,99.6,10.08458125]
[1770147123202,4.5,99.637,99.59,10.08458125]
[1770147123787,4.5,99.635,99.6,10.08458125]
[1770147123988,4.5,99.635,99.59,10.08458125]
[1770147124490,4.5,99.635,99.512,50.06237642]
[1770147124491,4.5,99.626,99.456,50.16581102]
[1770147124803,4.5,99.599,99.55,10.08458125]
[1770147124991,4.5,99.589,99.54,10.08458125]
[1770147125194,4.5,99.579,99.54,10.08458125]
[1770147125390,4.5,99.579,99.53,10.08458125]
[1770147125782,4.5,99.579,99.55,10.08458125]
[1770147126210,4.5,99.577,99.54,10.08458125]
[1770147126706,4.5,99.577,99.49,4.27527085]
[1770147126910,4.5,99.569,99.53,10.08458125]
[1770147127084,4.5,99.569,99.52,10.08458125]
[1770147127410,4.5,99.559,99.51,10.08458125]
[1770147127609,4.5,99.559,99.53,10.08458125]
[1770147127811,4.5,99.572,99.53,10.08458125]
[1770147128010,4.5,99.585,99.55,10.08458125]
[1770147128211,4.5,99.585,99.56,10.08458125]
[1770147128414,4.5,99.579,99.54,10.08458125]
[1770147128593,4.5,99.579,99.55,10.08458125]
[1770147128914,4.5,99.579,99.54,10.08458125]
[1770147129315,4.5,99.579,99.55,10.08458125]
[1770147131322,4.5,99.602,99.57,10.08458125]
[1770147131700,40.13104151,99.674,99.56,2.19688277]
[1770147131701,10.0373256,99.629,99.56,2.19688277]
[1770147131896,10.08458125,99.65,99.61,10.08458125]
[1770147132101,6.24260787,99.662,99.64,10.08458125]
[1770147132296,4.0457251,99.662,99.65,10.08458125]
[1770147132520,27.92,99.707,99.65,10.08458125]
[1770147132720,10.08458125,99.7,99.66,10.08458125]
[1770147132929,10.08458125,99.67,99.62,10.08458125]
[1770147133094,10.03119702,99.689,99.62,10.08458125]
[1770147133293,10.08458125,99.67,99.62,10.08458125]
[1770147133496,10.08458125,99.66,99.62,10.08458125]
[1770147133695,4.5,99.689,99.65,10.08458125]
[1770147133895,4.5,99.689,99.6,14.3598521]
[1770147133896,4.5,99.688,99.66,10.08458125]
[1770147134112,10.03119702,99.689,99.6,14.3598521]
[1770147134113,4.5,99.679,99.64,10.08458125]
[1770147134314,4.5,99.669,99.63,10.08458125]
[1770147135015,4.5,99.66,99.62,10.08458125]
[1770147135196,4.5,99.66,99.59,4.27527085]
[1770147135197,4.5,99.66,99.63,10.08458125]
[1770147136192,4.5,99.66,99.62,10.08458125]
[1770147136411,4.5,99.66,99.63,10.08458125]
[1770147136717,4.5,99.66,99.64,10.08458125]
[1770147136915,4.5,99.679,99.64,10.08458125]
[1770147137697,0.1,99.69,99.621,10.03804418]
[1770147137904,0.1,99.69,99.67,10.08458125]
[1770147138409,0.1,99.69,99.66,10.08458125]
[1770147139300,0.1,99.69,99.68,10.08458125]
[1770147139497,6.23674071,99.711,99.68,10.08458125]
[1770147139695,6.23674071,99.711,99.7,10.08458125]
[1770147139921,40.08256653,99.795,99.647,10.03538763]
[1770147139922,10.02672236,99.734,99.647,10.03538763]
[1770147140220,4.5,99.733,99.7,10.08458125]
[1770147140816,14.52687201,99.732,99.7,10.08458125]
[1770147141021,27.9,99.77,99.72,10.08458125]
[1770147141330,27.9,99.77,99.68,10.08458125]
[1770147141331,4.5,99.875,99.763,4.27527085]
[1770147141526,4.5,99.87,99.781,5.24234756]
[1770147141822,14.58458125,99.89,99.84,10.08458125]
[1770147142038,4.5,99.889,99.86,10.08458125]
[1770147142315,6.28668539,99.898,99.87,10.08458125]
[1770147142520,6.28668539,99.898,99.839,4.27527085]
[1770147142717,4.5,99.913,99.88,15.23641142]
[1770147142917,6.28052886,99.982,99.839,4.27527085]
[1770147142918,4.5,99.928,99.89,15.23641142]
[1770147143101,4.5,99.928,99.9,15.23641142]
[1770147143307,4.5,99.928,99.814,10.01860649]
[1770147143500,4.5,99.928,99.87,15.23641142]
[1770147143707,4.5,99.961,99.806,5.36086188]
[1770147144011,5.36086188,99.937,99.87,15.23641142]
[1770147144209,6.2508106,99.962,99.874,4.27527085]
[1770147144402,4.5,99.991,99.874,4.27527085]
[1770147144403,4.5,99.991,99.94,15.23641142]
[1770147144601,4.5,99.991,99.909,4.27527085]
[1770147144820,4.5,100.01,99.98,15.23641142]
[1770147145006,4.5,99.996,99.899,25.02505187]
[1770147145200,4.5,99.996,99.96,15.23641142]
[1770147145408,4.5,99.985,99.94,15.23641142]
[1770147145709,4.5,99.985,99.868,50.03498227]
[1770147145710,4.5,99.985,99.872,4.27527085]
[1770147146031,4.5,99.985,99.869,27.88]
[1770147146032,6.97215037,100.03,99.97,15.23641142]
[1770147146208,6.97215037,100.03,99.931,10.00690476]
[1770147146209,2.47215037,100.03,99.99,15.23641142]
[1770147146413,4.5,100.09,100.02,15.23641142]
[1770147146609,4.5,100.11,100.06,15.23641142]
[1770147146805,4.5,100.1,100.06,15.23641142]
[1770147147003,4.5,100.13,100.02,39.41043052]
[1770147147220,4.5,100.1,99.991,4.27527085]
[1770147147415,4.5,100.12,100.08,15.23641142]
[1770147147614,24.96003154,100.17,100.02,14.27306599]
[1770147147615,4.5,100.15,100.11,15.23641142]
[1770147147800,4.5,100.15,100.13,15.23641142]
[1770147148005,4.5,100.13,100.09,15.23641142]
[1770147148205,4.8036362,100.18,100.12,15.23641142]
[1770147148420,4.5,100.22,100.13,4.27527085]
[1770147148924,19.73641142,100.19,100.1,14.26437819]
[1770147149110,4.5,100.19,100.09,4.27527085]
[1770147149306,86.44738315,100.23,100.18,15.23641142]
[1770147149307,8.70199216,100.23,100.18,15.23641142]
[1770147149500,8.70199216,100.23,100.15,4.41743242]
[1770147149702,2.47215037,100.23,100.13,67.08979244]
[1770147149927,6.97215037,100.23,100.18,15.23641142]
[1770147150132,6.97215037,100.23,100.13,35.09668316]
[1770147150335,4.5,100.2,100.11,27.86]
[1770147150627,4.5,100.17,100.07,24.98210723]
[1770147150928,19.73641142,100.13,100.06,319.74973408]
[1770147151106,4.5,100.12,100.08,15.23641142]
[1770147151429,4.5,100.12,100.0,67.83622174]
[1770147151430,4.5,100.08,99.971,240.01738189]
[1770147151616,27.82,100.12,99.995,25.00106953]
[1770147151928,4.5,100.11,100.07,15.23641142]
[1770147152129,4.5,100.11,100.09,15.23641142]
[1770147152313,4.5,100.09,99.971,240.01738189]
[1770147152518,19.73641142,100.07,100.02,15.23641142]
[1770147152721,4.5,100.07,100.02,15.23641142]
[1770147152919,4.5,100.07,99.972,10.00277826]
[1770147152920,4.5,100.06,99.972,10.00277826]
[1770147153115,4.5,100.06,100.03,15.23641142]
[1770147153434,4.5,100.04,99.944,10.00553843]
[1770147153607,4.5,100.04,99.964,4.27527085]
[1770147153811,19.73641142,100.01,99.97,15.23641142]
[1770147154024,19.73641142,100.01,99.898,25.0254265]
[1770147154025,15.23641142,100.0,99.96,15.23641142]
[1770147154334,19.73641142,100.01,99.96,15.23641142]
[1770147154627,4.5,100.01,99.97,15.23641142]
[1770147154831,4.5,100.01,99.932,4.27527085]
[1770147155125,15.23641142,100.02,99.89,40.04374686]
[1770147155126,4.5,99.989,99.97,15.23641142]
[1770147155318,24.99475785,100.03,99.96,15.23641142]
[1770147155319,4.5,99.994,99.96,15.23641142]